bitfinex-derivatives/quotes_BTCF0:USTF0_20250910
["timestamp","ask_amount","ask_price","bid_price","bid_amount"]
[1757474066462,0.20077067,111510.0,111500.0,0.15738736]
[1757474068770,0.05737811,111510.0,111500.0,0.30077992]
[1757474069069,0.02298811,111510.0,111500.0,0.69417248]
[1757474069268,0.001,111510.0,111500.0,0.69417248]
[1757474069469,0.001,111510.0,111500.0,0.75873261]
[1757474069671,0.001,111510.0,111500.0,0.69417248]
[1757474070263,0.01277,111520.0,111500.0,0.69417248]
[1757474070470,0.0347,111520.0,111510.0,1.11480512]
[1757474070676,0.0565989,111520.0,111510.0,1.11480512]
[1757474073379,0.0575989,111520.0,111510.0,1.11480512]
[1757474076878,0.0229989,111520.0,111510.0,1.12346512]
[1757474080689,0.0229989,111520.0,111510.0,1.11480512]
[1757474083288,0.0367589,111520.0,111510.0,1.11480512]
[1757474087294,0.0596889,111520.0,111510.0,1.11480512]
[1757474087586,0.0367589,111520.0,111510.0,1.11480512]
[1757474088293,0.0367589,111520.0,111510.0,0.92358684]
[1757474088593,0.0229989,111520.0,111510.0,0.92358684]
[1757474088789,0.001,111520.0,111510.0,1.01915368]
[1757474089192,0.001,111520.0,111510.0,1.26915368]
[1757474089388,0.0001,111530.0,111510.0,1.45438832]
[1757474089590,0.0620025,111560.0,111520.0,0.38862322]
[1757474089793,0.05867928,111560.0,111550.0,0.10766684]
[1757474090594,0.05867928,111560.0,111550.0,0.92158684]
[1757474091100,0.06067928,111560.0,111550.0,0.92158684]
[1757474091291,0.06467928,111560.0,111550.0,0.92158684]
[1757474091491,0.06467928,111560.0,111550.0,0.93051221]
[1757474091891,0.06367928,111560.0,111550.0,0.93051221]
[1757474092094,0.06467928,111560.0,111550.0,0.93051221]
[1757474092794,0.06467928,111560.0,111550.0,1.00084506]
[1757474094002,0.05967928,111560.0,111550.0,1.00084506]
[1757474094192,0.06067928,111560.0,111550.0,1.00084506]
[1757474099196,0.06067928,111560.0,111550.0,1.00064506]
[1757474101702,0.06067928,111560.0,111550.0,1.00060506]
[1757474105500,0.02398928,111560.0,111550.0,1.00060506]
[1757474106004,0.02398928,111560.0,111550.0,0.99700506]
[1757474106704,0.06067928,111560.0,111550.0,0.18332506]
[1757474106894,0.06067928,111560.0,111550.0,0.99692506]
[1757474115506,0.06067928,111560.0,111550.0,0.99680506]
[1757474119121,0.10882178,111560.0,111550.0,0.99680506]
[1757474121914,0.06067928,111560.0,111550.0,0.99680506]
[1757474122120,0.03774928,111560.0,111550.0,0.99680506]
[1757474122320,0.03774928,111560.0,111550.0,1.0923719]
[1757474122519,0.02398928,111560.0,111550.0,1.0923719]
[1757474124519,0.0634125,111560.0,111550.0,1.0923719]
[1757474124719,0.10774178,111560.0,111550.0,0.99680506]
[1757474127034,0.08540178,111560.0,111550.0,0.99680506]
[1757474127330,0.02398928,111560.0,111550.0,0.99680506]
[1757474132346,0.05959928,111560.0,111550.0,0.99660506]
[1757474138047,0.03725928,111560.0,111550.0,0.99660506]
[1757474138248,0.02398928,111560.0,111550.0,0.99660506]
[1757474138938,0.02398928,111560.0,111550.0,1.3421719]
[1757474139140,0.002,111560.0,111550.0,1.3421719]
[1757474139343,0.002,111560.0,111550.0,1.0921719]
[1757474140646,0.0001,111570.0,111550.0,1.40673203]
[1757474140846,0.0001,111570.0,111560.0,0.19427368]
[1757474141046,0.01386,111580.0,111560.0,0.19427368]
[1757474141246,0.03558235,111580.0,111570.0,0.91190684]
[1757474141545,0.03548235,111580.0,111570.0,0.91190684]
[1757474143150,0.03748235,111580.0,111570.0,0.91190684]
[1757474143449,0.04048235,111580.0,111570.0,0.91190684]
[1757474143751,0.06298235,111580.0,111570.0,0.09870684]
[1757474143952,0.06298235,111580.0,111570.0,0.91182684]
[1757474148448,0.06298235,111580.0,111570.0,1.10268214]
[1757474152352,0.04048235,111580.0,111570.0,1.10268214]
[1757474152552,0.02672235,111580.0,111570.0,1.10268214]
[1757474153362,0.03990235,111580.0,111570.0,1.10268214]
[1757474154356,0.06240235,111580.0,111570.0,0.28956214]
[1757474154557,0.06240235,111580.0,111570.0,1.10252214]
[1757474157259,0.03990235,111580.0,111570.0,1.10252214]
[1757474157958,0.01818,111580.0,111570.0,1.10252214]
[1757474158355,0.005,111580.0,111570.0,1.35252214]
[1757474159159,0.00304,111580.0,111570.0,1.49573321]
[1757474159359,0.00304,111580.0,111570.0,1.35252214]
[1757474160260,0.00304,111580.0,111570.0,0.53956214]
[1757474160460,0.00304,111580.0,111570.0,1.35248214]
[1757474164160,0.00304,111580.0,111570.0,1.10240214]
[1757474164356,0.03872,111580.0,111570.0,0.00314]
[1757474164563,0.03872,111580.0,111570.0,1.10240214]
[1757474164762,0.01622,111580.0,111570.0,1.10240214]
[1757474165263,0.01622,111580.0,111570.0,0.28956214]
[1757474165462,0.01622,111580.0,111570.0,1.10240214]
[1757474166267,0.00304,111580.0,111570.0,1.10240214]
[1757474166564,0.00304,111580.0,111570.0,1.10236214]
[1757474169260,0.02475718,111580.0,111570.0,1.10236214]
[1757474175067,0.02475718,111580.0,111570.0,1.49557321]
[1757474178673,0.00304,111580.0,111570.0,1.35236214]
[1757474179579,0.00304,111580.0,111570.0,1.49557321]
[1757474179873,0.00304,111580.0,111570.0,1.24557321]
[1757474180066,0.00304,111580.0,111570.0,1.49557321]
[1757474182367,0.003,111580.0,111570.0,1.58519651]
[1757474183273,0.001,111580.0,111570.0,1.58519651]
[1757474183975,0.001,111580.0,111570.0,1.49557321]
[1757474185470,0.0001,111590.0,111570.0,1.49533321]
[1757474185670,0.0001,111590.0,111580.0,0.42963321]
[1757474185866,0.0001,111600.0,111580.0,0.42963321]
[1757474186172,0.02182516,111600.0,111590.0,1.09898214]
[1757474186370,0.03483516,111600.0,111590.0,1.09898214]
[1757474188868,0.03683516,111600.0,111590.0,1.09898214]
[1757474189471,0.03683516,111600.0,111590.0,1.1694403]
[1757474189669,0.03683516,111600.0,111590.0,1.1694003]
[1757474190680,0.06010516,111600.0,111590.0,0.3568803]
[1757474190881,0.06010516,111600.0,111590.0,0.88297816]
[1757474191076,0.06010516,111600.0,111590.0,1.1694003]
[1757474191877,0.06010516,111600.0,111590.0,1.1693603]
[1757474192179,0.03683516,111600.0,111590.0,1.1693603]
[1757474192478,0.03583516,111600.0,111590.0,1.1693603]
[1757474192778,0.03883516,111600.0,111590.0,1.1693603]
[1757474193474,0.02572516,111600.0,111590.0,1.1693603]
[1757474193678,0.03883516,111600.0,111590.0,1.1693603]
[1757474193880,0.004,111600.0,111590.0,1.1693603]
[1757474194378,0.003,111600.0,111590.0,1.1693603]
[1757474194577,0.01611,111600.0,111590.0,1.1693603]
[1757474196282,0.003,111600.0,111590.0,1.1693603]
[1757474197978,0.01611,111600.0,111590.0,1.1693603]
[1757474198876,0.003,111600.0,111590.0,1.1693603]
[1757474200783,0.01611,111600.0,111590.0,1.1693603]
[1757474200983,0.03938,111600.0,111590.0,0.88281816]
[1757474201183,0.03938,111600.0,111590.0,1.1692403]
[1757474203491,0.01611,111600.0,111590.0,1.1692403]
[1757474206284,0.01611,111600.0,111590.0,0.88281816]
[1757474206589,0.01611,111600.0,111590.0,1.1692403]
[1757474209091,0.03799599,111600.0,111590.0,1.1692403]
[1757474209590,0.05966599,111600.0,111590.0,0.3568803]
[1757474209791,0.05966599,111600.0,111590.0,1.1691603]
[1757474209991,0.03799599,111600.0,111590.0,1.1691603]
[1757474210191,0.03699599,111600.0,111590.0,1.1691603]
[1757474210391,0.03699599,111600.0,111590.0,1.07359702]
[1757474211097,0.03599599,111600.0,111590.0,1.07359702]
[1757474213092,0.05766599,111600.0,111590.0,0.97816759]
[1757474214001,0.30766599,111600.0,111590.0,0.16588759]
[1757474214189,0.30766599,111600.0,111590.0,0.97812759]
[1757474215498,0.30775186,111600.0,111590.0,0.97812759]
[1757474215694,0.05775186,111600.0,111590.0,0.97812759]
[1757474221001,0.05775198,111600.0,111590.0,0.97812759]
[1757474222499,0.05775198,111600.0,111590.0,0.88269816]
[1757474222703,0.05775198,111600.0,111590.0,0.97812759]
[1757474222996,0.03608198,111600.0,111590.0,0.97812759]
[1757474223202,0.03608198,111600.0,111590.0,1.07355702]
[1757474224406,0.02297198,111600.0,111590.0,1.32355702]
[1757474225403,0.01311,111630.0,111600.0,0.0895987]
[1757474225608,0.05658664,111640.0,111620.0,0.19085886]
[1757474225800,0.05658664,111640.0,111630.0,0.90762943]
[1757474226501,0.05658664,111640.0,111630.0,0.91643997]
[1757474227204,0.05958664,111640.0,111630.0,0.91643997]
[1757474227903,0.06258664,111640.0,111630.0,0.91643997]
[1757474228103,0.0623256,111640.0,111630.0,0.91643997]
[1757474229395,0.0633256,111640.0,111630.0,0.91643997]
[1757474230503,0.0633256,111640.0,111630.0,0.98969609]
[1757474231904,0.0633256,111640.0,111630.0,1.01022001]
[1757474232203,0.0288756,111640.0,111630.0,1.10564944]
[1757474233904,0.0288756,111640.0,111630.0,0.29344944]
[1757474234106,0.0288756,111640.0,111630.0,1.10552944]
[1757474234307,0.007,111640.0,111630.0,1.10552944]
[1757474238913,0.007,111640.0,111630.0,1.45095887]
[1757474239315,0.48298886,111640.0,111630.0,0.10259058]
[1757474239511,0.50481664,111640.0,111630.0,0.07325612]
[1757474239704,0.01292,111630.0,111620.0,0.0001348]
[1757474239908,0.05695909,111630.0,111620.0,0.0001348]
[1757474240109,0.15238852,111630.0,111620.0,0.0001348]
[1757474241409,0.40238852,111630.0,111620.0,0.0001348]
[1757474241609,0.40438852,111630.0,111620.0,0.0001348]
[1757474241803,0.30895909,111630.0,111620.0,0.0001348]
[1757474242114,0.40438852,111630.0,111620.0,0.0001348]
[1757474243514,0.40538852,111630.0,111620.0,0.0001348]
[1757474244621,0.30995909,111630.0,111620.0,0.0001348]
[1757474244813,0.40538852,111630.0,111620.0,0.0001348]
[1757474245716,0.41445083,111630.0,111620.0,0.0001348]
[1757474245905,0.40538852,111630.0,111620.0,0.0001348]
[1757474248509,0.30995909,111630.0,111620.0,0.0001348]
[1757474248716,0.40538852,111630.0,111620.0,0.0001348]
[1757474259327,0.15538852,111630.0,111620.0,0.0001348]
[1757474268331,0.20353102,111630.0,111620.0,0.0001348]
[1757474268734,0.15538852,111630.0,111620.0,0.0001348]
[1757474269331,0.20353102,111630.0,111620.0,0.0001348]
[1757474272341,0.25125204,111630.0,111620.0,0.0001348]
[1757474273534,0.0349,111600.0,111590.0,0.13488648]
[1757474273739,0.19997981,111600.0,111590.0,0.21382861]
[1757474274940,0.19997981,111600.0,111590.0,0.21582861]
[1757474275941,0.19997981,111600.0,111590.0,0.21682861]
[1757474276543,0.19997981,111600.0,111590.0,0.21582861]
[1757474276842,0.19997981,111600.0,111590.0,0.22497158]
[1757474278645,0.19997981,111600.0,111590.0,0.22297158]
[1757474278846,0.05782936,111600.0,111590.0,0.22297158]
[1757474279444,0.0359,111600.0,111590.0,0.22297158]
[1757474280841,0.0359,111600.0,111590.0,0.47297158]
[1757474281041,0.02290835,111600.0,111590.0,0.75927248]
[1757474281343,0.001,111600.0,111590.0,1.42996203]
[1757474281749,0.0128348,111610.0,111590.0,1.42996203]
[1757474281942,0.0351348,111610.0,111600.0,0.2865209]
[1757474282243,0.05682355,111610.0,111600.0,0.2865209]
[1757474284546,0.199974,111610.0,111600.0,0.14337045]
[1757474284940,0.199974,111610.0,111600.0,0.2865209]
[1757474285446,0.05682355,111610.0,111600.0,0.2865209]
[1757474285642,0.199974,111610.0,111600.0,0.2865209]
[1757474285848,0.05782355,111610.0,111600.0,0.2865209]
[1757474288449,0.200974,111610.0,111600.0,0.2865209]
[1757474289450,0.05782355,111610.0,111600.0,0.2865209]
[1757474292753,0.200974,111610.0,111600.0,0.2865209]
[1757474295555,0.200974,111610.0,111600.0,0.14337045]
[1757474297160,0.05782355,111610.0,111600.0,0.14337045]
[1757474297359,0.05782355,111610.0,111600.0,0.2865209]
[1757474300658,0.05682355,111610.0,111600.0,0.2865209]
[1757474301961,0.02192355,111610.0,111600.0,1.51409079]
[1757474302655,0.0001348,111610.0,111600.0,1.51409079]
[1757474303661,0.0001348,111610.0,111600.0,1.51509079]
[1757474304263,0.0001348,111610.0,111600.0,1.51609079]
[1757474304562,0.0001348,111610.0,111600.0,1.08663944]
[1757474304762,0.0001348,111610.0,111600.0,1.51609079]
[1757474306860,0.0001348,111610.0,111600.0,1.26609079]
[1757474307057,0.0001348,111610.0,111600.0,1.51609079]
[1757474307252,0.0352048,111610.0,111600.0,1.12302034]
[1757474307460,0.0352048,111610.0,111600.0,0.83671944]
[1757474307764,0.0352048,111610.0,111600.0,1.12302034]
[1757474308766,0.0352048,111610.0,111600.0,0.30938034]
[1757474309064,0.0352048,111610.0,111600.0,1.12294034]
[1757474310466,0.0352048,111610.0,111600.0,1.12338034]
[1757474313067,0.0128348,111610.0,111600.0,1.26653079]
[1757474313267,0.0001348,111610.0,111600.0,1.26653079]
[1757474317071,0.0128348,111610.0,111600.0,1.26653079]
[1757474326176,0.0001348,111610.0,111600.0,1.26653079]
[1757474329476,0.0001348,111610.0,111600.0,1.33073911]
[1757474332072,0.0133148,111610.0,111600.0,1.33073911]
[1757474332579,0.0133148,111610.0,111600.0,1.26653079]
[1757474334279,0.0133148,111610.0,111600.0,0.93248212]
[1757474334477,0.0133148,111610.0,111600.0,1.0278848]
[1757474335176,0.0001348,111610.0,111600.0,1.0278848]
[1757474335381,0.0001348,111610.0,111600.0,1.09209312]
[1757474336280,0.0363648,111610.0,111600.0,1.09109312]
[1757474336872,0.0363648,111610.0,111600.0,0.90024776]
[1757474337182,0.30813651,111610.0,111600.0,0.93144212]
[1757474337683,0.30813651,111610.0,111600.0,0.93164212]
[1757474338182,0.30813528,111610.0,111600.0,0.93072212]
[1757474338684,0.30813528,111610.0,111600.0,0.11748212]
[1757474338876,0.30813528,111610.0,111600.0,0.93080212]
[1757474342681,0.30813528,111610.0,111600.0,0.00122]
[1757474342881,0.40353796,111610.0,111600.0,0.90982268]
[1757474343089,0.40353796,111610.0,111600.0,0.90882268]
[1757474343278,0.40353796,111610.0,111590.0,0.89268113]
[1757474343580,0.03623,111600.0,111590.0,0.8133]
[1757474343990,0.03623,111600.0,111590.0,0.82243478]
[1757474344287,0.03623,111600.0,111590.0,0.00935478]
[1757474344483,0.03623,111600.0,111590.0,0.61619746]
[1757474346481,0.03623,111600.0,111590.0,0.6864978]
[1757474347485,0.03623,111600.0,111590.0,0.9885378]
[1757474348789,0.05795298,111600.0,111590.0,0.9885378]
[1757474350293,0.03623,111600.0,111590.0,0.9885378]
[1757474350894,0.05795161,111600.0,111590.0,0.9884178]
[1757474353594,0.03623,111600.0,111590.0,0.9884178]
[1757474354186,0.03623,111600.0,111590.0,0.1750578]
[1757474354696,0.03623,111600.0,111590.0,0.9223778]
[1757474355496,0.03623,111600.0,111590.0,0.82697512]
[1757474355696,0.03623,111600.0,111590.0,0.9883378]
[1757474356296,0.03623,111600.0,111590.0,0.1750578]
[1757474356496,0.05794995,111600.0,111590.0,0.9882978]
[1757474358798,0.03623,111600.0,111590.0,0.9882978]
[1757474363789,0.03623,111600.0,111590.0,0.9879778]
[1757474371499,0.03623,111600.0,111590.0,1.05218612]
[1757474374503,0.03623,111600.0,111590.0,0.23926612]
[1757474374712,0.05796584,111600.0,111590.0,0.1750578]
[1757474374901,0.05796584,111600.0,111590.0,0.9876178]
[1757474381520,0.05796584,111600.0,111590.0,0.1750578]
[1757474381712,0.05796584,111600.0,111590.0,0.9876178]
[1757474384219,0.05796584,111600.0,111590.0,0.1750578]
[1757474384518,0.15336852,111600.0,111590.0,0.07052034]
[1757474385115,0.0354,111590.0,111580.0,0.02106561]
[1757474385316,0.15253852,111590.0,111570.0,0.90796268]
[1757474385621,0.0354,111580.0,111570.0,0.90818268]
[1757474386515,0.0354,111580.0,111570.0,0.90918268]
[1757474386812,0.0354,111580.0,111570.0,0.91809084]
[1757474387120,0.0354,111580.0,111570.0,0.01012816]
[1757474387320,0.13080268,111580.0,111570.0,0.66556816]
[1757474387521,0.15251278,111580.0,111570.0,0.01112816]
[1757474387724,0.15251278,111580.0,111570.0,0.10653084]
[1757474388118,0.0571101,111580.0,111570.0,0.10653084]
[1757474388420,0.0354,111580.0,111570.0,0.10653084]
[1757474388723,0.05710131,111580.0,111570.0,0.10653084]
[1757474388924,0.05710131,111580.0,111570.0,0.17849994]
[1757474392525,0.0354,111580.0,111570.0,0.17849994]
[1757474396436,0.17862212,111580.0,111570.0,0.22631938]
[1757474397034,0.0354,111580.0,111570.0,0.22631938]
[1757474397237,0.17862212,111580.0,111570.0,0.22631938]
[1757474397837,0.0354,111580.0,111570.0,0.22631938]
[1757474398239,0.0354,111580.0,111570.0,0.3695415]
[1757474404638,0.0354,111580.0,111570.0,0.22631938]
[1757474404836,0.0354,111580.0,111570.0,0.08309726]
[1757474405141,0.17862212,111580.0,111570.0,0.22631938]
[1757474405440,0.0354,111580.0,111570.0,0.22631938]
[1757474407139,0.17862212,111580.0,111570.0,0.22631938]
[1757474407538,0.0354,111580.0,111570.0,0.22631938]
[1757474408038,0.0354,111580.0,111570.0,0.08309726]
[1757474408341,0.0354,111580.0,111570.0,0.22631938]
[1757474409941,0.17862212,111580.0,111570.0,0.08309726]
[1757474410243,0.17862212,111580.0,111570.0,0.22631938]
[1757474413444,0.20034218,111580.0,111570.0,0.22631938]
[1757474418651,0.20034218,111580.0,111570.0,0.08309726]
[1757474418849,0.20034218,111580.0,111570.0,0.22631938]
[1757474420651,0.20034218,111580.0,111570.0,0.08309726]
[1757474420953,0.20034218,111580.0,111570.0,0.22631938]
[1757474424755,0.3435643,111580.0,111570.0,0.21741122]
[1757474425054,0.3435643,111580.0,111570.0,0.0741891]
[1757474425355,0.3435643,111580.0,111570.0,0.21741122]
[1757474426757,0.20034218,111580.0,111570.0,0.21741122]
[1757474427058,0.20034218,111580.0,111570.0,0.0741891]
[1757474427259,0.20034218,111580.0,111570.0,0.21741122]
[1757474436066,0.20034218,111580.0,111570.0,0.14544212]
[1757474436562,0.05712006,111580.0,111570.0,0.14544212]
[1757474436757,0.20034218,111580.0,111570.0,0.14544212]
[1757474438759,0.20034218,111580.0,111570.0,0.00222]
[1757474438966,0.20034218,111580.0,111570.0,0.14544212]
[1757474439166,0.20034218,111580.0,111570.0,0.00222]
[1757474439359,0.20034218,111580.0,111570.0,0.14544212]
[1757474440765,0.20034218,111580.0,111570.0,0.00222]
[1757474440966,0.20034218,111580.0,111570.0,0.14544212]
[1757474442768,0.05712006,111580.0,111570.0,0.14544212]
[1757474442969,0.20034218,111580.0,111570.0,0.14544212]
[1757474454977,0.3435643,111580.0,111570.0,0.14544212]
[1757474455476,0.3435643,111580.0,111570.0,0.14522212]
[1757474455678,0.3435643,111580.0,111570.0,0.14544212]
[1757474456279,0.20034218,111580.0,111570.0,0.14544212]
[1757474458382,0.15261082,111580.0,111570.0,0.09771076]
[1757474460579,0.05712006,111580.0,111570.0,0.09771076]
[1757474461683,0.05712006,111580.0,111570.0,0.00222]
[1757474461875,0.05712006,111580.0,111570.0,0.09771076]
[1757474465987,0.15261082,111580.0,111570.0,0.00222]
[1757474466192,0.15261082,111580.0,111570.0,0.09771076]
[1757474472696,0.15261082,111580.0,111570.0,0.00222]
[1757474474597,0.15261082,111580.0,111570.0,0.09771076]
[1757474477290,0.05712006,111580.0,111570.0,0.09771076]
[1757474477496,0.15261082,111580.0,111570.0,0.09771076]
[1757474478497,0.05712006,111580.0,111570.0,0.09771076]
[1757474481902,0.05712006,111580.0,111570.0,0.00222]
[1757474482104,0.05712006,111580.0,111570.0,0.09771076]
[1757474485008,0.15261082,111580.0,111570.0,0.09771076]
[1757474491914,0.05712006,111580.0,111570.0,0.09771076]
[1757474492108,0.15261082,111580.0,111570.0,0.09771076]
[1757474492412,0.15261082,111580.0,111570.0,0.00222]
[1757474492912,0.15261082,111580.0,111570.0,0.09771076]
[1757474498416,0.15261082,111580.0,111570.0,0.002]
[1757474498417,0.24810158,111580.0,111570.0,0.002]
[1757474511024,0.25702051,111580.0,111570.0,0.002]
[1757474513326,0.24810158,111580.0,111570.0,0.002]
[1757474518929,0.24810136,111580.0,111570.0,0.002]
[1757474520329,0.34364844,111580.0,111570.0,0.002]
[1757474523437,0.05711984,111580.0,111570.0,0.002]
[1757474523637,0.34364844,111580.0,111570.0,0.002]
[1757474528440,0.05711984,111580.0,111570.0,0.002]
[1757474528637,0.34364844,111580.0,111570.0,0.002]
[1757474549854,0.05711984,111580.0,111570.0,0.002]
[1757474550060,0.34364844,111580.0,111570.0,0.002]
[1757474550360,0.05711984,111580.0,111570.0,0.00222]
[1757474550561,0.34364844,111580.0,111570.0,0.002]
[1757474551956,0.05711984,111580.0,111570.0,0.5387486]
[1757474552157,0.02171984,111580.0,111570.0,0.6283724]
[1757474552361,0.0002348,111590.0,111580.0,0.0898357]
[1757474552561,0.0001348,111590.0,111580.0,0.44057262]
[1757474552757,0.0001348,111590.0,111580.0,0.69057262]
[1757474554264,0.0001348,111590.0,111580.0,0.60095692]
[1757474554962,0.0136248,111590.0,111580.0,0.60095692]
[1757474555162,0.0136248,111590.0,111580.0,0.5367486]
[1757474556867,0.0348948,111590.0,111580.0,0.5367486]
[1757474557059,0.0136248,111590.0,111580.0,0.5367486]
[1757474557665,0.0348948,111590.0,111580.0,0.5367486]
[1757474557860,0.0348948,111590.0,111580.0,0.3934843]
[1757474558066,0.0348948,111590.0,111580.0,0.5367486]
[1757474558366,0.0136248,111590.0,111580.0,0.5367486]
[1757474559064,0.0001348,111590.0,111580.0,0.7696287]
[1757474559269,0.0001348,111590.0,111580.0,0.5406703]
[1757474559664,0.0001348,111590.0,111580.0,0.7906703]
[1757474559867,0.0001,111600.0,111590.0,0.0896078]
[1757474560068,0.0001,111610.0,111600.0,0.0895998]
[1757474560267,0.03486,111620.0,111600.0,0.25389604]
[1757474560566,0.03486,111620.0,111610.0,0.1432643]
[1757474560871,0.03476,111620.0,111610.0,0.2865286]
[1757474562472,0.03476,111620.0,111610.0,0.29549704]
[1757474562772,0.01349,111620.0,111610.0,0.29549704]
[1757474563273,0.03572,111620.0,111610.0,0.29549704]
[1757474564778,0.03572,111620.0,111610.0,0.36852261]
[1757474569575,0.01449,111620.0,111610.0,1.43068261]
[1757474569783,0.001,111620.0,111610.0,1.43068261]
[1757474570779,0.001,111620.0,111610.0,0.61852261]
[1757474570983,0.001,111620.0,111610.0,1.43068261]
[1757474571580,0.01359,111630.0,111610.0,1.43068261]
[1757474571880,0.03482,111630.0,111620.0,0.2865286]
[1757474572081,0.03472,111630.0,111620.0,0.2865286]
[1757474574780,0.03572,111630.0,111620.0,0.2865286]
[1757474575984,0.03572,111630.0,111620.0,1.0986086]
[1757474577386,0.05725007,111630.0,111620.0,1.0986086]
[1757474579188,0.05725007,111630.0,111620.0,0.2865286]
[1757474579379,0.05725007,111630.0,111620.0,1.0985686]
[1757474580283,0.05725007,111630.0,111620.0,1.0028182]
[1757474582082,0.05725007,111630.0,111620.0,0.1907782]
[1757474582288,0.05725007,111630.0,111620.0,1.0027782]
[1757474582487,0.03507,111620.0,111610.0,0.89399401]
[1757474582691,0.05660007,111620.0,111610.0,0.91635754]
[1757474584291,0.05660007,111620.0,111610.0,0.98812886]
[1757474585090,0.02153007,111620.0,111610.0,1.08351796]
[1757474585289,0.03512007,111630.0,111610.0,1.33351796]
[1757474585480,0.03512007,111630.0,111620.0,0.1907782]
[1757474585684,0.02153007,111630.0,111620.0,0.1907782]
[1757474585998,0.05635007,111640.0,111620.0,0.2861673]
[1757474586288,0.03512007,111640.0,111630.0,1.0027782]
[1757474586488,0.03502007,111640.0,111630.0,1.0027782]
[1757474587186,0.03502007,111640.0,111630.0,0.9073891]
[1757474588087,0.03602007,111640.0,111630.0,0.9073891]
[1757474588393,0.05725007,111640.0,111630.0,0.9073891]
[1757474588995,0.05725007,111640.0,111630.0,0.812]
[1757474589497,0.02553007,111640.0,111630.0,0.9073891]
[1757474595595,0.06203007,111640.0,111630.0,0.9073891]
[1757474596502,0.03873007,111640.0,111630.0,0.9073891]
[1757474597496,0.03873007,111640.0,111630.0,1.0027782]
[1757474600104,0.02553007,111640.0,111630.0,1.0027782]
[1757474601706,0.02553007,111640.0,111630.0,0.9073891]
[1757474601908,0.03873007,111640.0,111630.0,1.0027782]
[1757474602600,0.02553007,111640.0,111630.0,1.0027782]
[1757474603307,0.03873007,111640.0,111630.0,1.0027782]
[1757474604708,0.03873007,111640.0,111630.0,0.9073891]
[1757474604909,0.06203007,111640.0,111630.0,0.81184]
[1757474605102,0.0365,111630.0,111620.0,0.0001348]
[1757474605307,0.05810656,111630.0,111620.0,0.9073639]
[1757474605809,0.05810656,111630.0,111620.0,1.002753]
[1757474607206,0.05910656,111630.0,111620.0,1.002753]
[1757474608710,0.05910656,111630.0,111620.0,1.002713]
[1757474610001,0.03580656,111630.0,111620.0,1.002713]
[1757474610714,0.02260656,111630.0,111620.0,1.002713]
[1757474613108,0.03580656,111630.0,111620.0,1.002713]
[1757474613310,0.02260656,111630.0,111620.0,1.002713]
[1757474614515,0.03580656,111630.0,111620.0,1.002713]
[1757474614717,0.05910656,111630.0,111620.0,0.190913]
[1757474614919,0.05910656,111630.0,111620.0,1.002713]
[1757474615218,0.05910656,111630.0,111620.0,0.0001348]
[1757474615517,0.05910656,111630.0,111620.0,1.002713]
[1757474615717,0.05910656,111630.0,111620.0,0.190913]
[1757474615910,0.05910656,111630.0,111620.0,1.002713]
[1757474618729,0.05910656,111630.0,111620.0,0.0001348]
[1757474619027,0.05910656,111630.0,111620.0,1.003193]
[1757474620031,0.03580656,111630.0,111620.0,1.003193]
[1757474620531,0.40449566,111630.0,111620.0,0.9079239]
[1757474620829,0.40449566,111630.0,111620.0,0.8125348]
[1757474621023,0.40449566,111630.0,111620.0,0.9079239]
[1757474621227,0.30910656,111630.0,111620.0,0.9079239]
[1757474622026,0.30910656,111630.0,111620.0,0.8125348]
[1757474622329,0.30910656,111630.0,111620.0,0.9079239]
[1757474626431,0.30910656,111630.0,111620.0,0.9083239]
[1757474632837,0.30910656,111630.0,111620.0,0.8129348]
[1757474633028,0.30910656,111630.0,111620.0,0.0001348]
[1757474633029,0.15449566,111630.0,111620.0,0.0001348]
[1757474633234,0.15449566,111630.0,111620.0,0.0046048]
[1757474633735,0.40449566,111630.0,111620.0,0.0046048]
[1757474642438,0.45222964,111630.0,111620.0,0.0046048]
[1757474642638,0.45222964,111630.0,111620.0,0.14772788]
[1757474645938,0.45222964,111630.0,111620.0,0.0046048]
[1757474646340,0.45222964,111630.0,111620.0,0.14772788]
[1757474646641,0.45222964,111630.0,111620.0,0.0046048]
[1757474651539,0.45222964,111630.0,111620.0,0.14772788]
[1757474656649,0.46141836,111630.0,111620.0,0.14772788]
[1757474656849,0.46141836,111630.0,111620.0,0.0046048]
[1757474659452,0.21141836,111630.0,111620.0,0.0046048]
[1757474659753,1.01418964,111630.0,111620.0,0.0046048]
[1757474661754,1.02324797,111630.0,111620.0,0.0046048]
[1757474662055,1.01418964,111630.0,111620.0,0.0046048]
[1757474664857,1.01418964,111630.0,111620.0,0.14772788]
[1757474665057,1.02317361,111630.0,111620.0,0.14772788]
[1757474665447,1.01418964,111630.0,111620.0,0.14772788]
[1757474666057,0.20222964,111630.0,111620.0,0.14772788]
[1757474666253,1.01418964,111630.0,111620.0,0.14772788]
[1757474671163,1.02326972,111630.0,111620.0,0.14772788]
[1757474671357,1.01418964,111630.0,111620.0,0.14772788]
[1757474671862,1.01418964,111630.0,111620.0,0.0046048]
[1757474672068,1.01418964,111630.0,111620.0,0.14772788]
[1757474673270,1.02300203,111630.0,111620.0,0.14772788]
[1757474673570,1.01418964,111630.0,111620.0,0.14772788]
[1757474677170,1.01418964,111630.0,111620.0,0.0046048]
[1757474677570,1.02315564,111630.0,111620.0,0.0046048]
[1757474685878,1.41627872,111630.0,111620.0,0.0046048]
[1757474688679,1.48666147,111630.0,111620.0,0.0046048]
[1757474693186,0.38845531,111630.0,111620.0,0.0046048]
[1757474693376,1.48662147,111630.0,111620.0,0.0046048]
[1757474698992,1.53476397,111630.0,111620.0,0.0046048]
[1757474700294,0.72284397,111630.0,111620.0,0.0046048]
[1757474700490,1.53472397,111630.0,111620.0,0.0046048]
[1757474701493,0.72284397,111630.0,111620.0,0.0046048]
[1757474701697,0.10724906,111630.0,111620.0,0.54085096]
[1757474701890,0.05910656,111630.0,111620.0,0.54085096]
[1757474702394,0.05910656,111630.0,111620.0,0.44536838]
[1757474702691,0.05910656,111630.0,111620.0,0.34998659]
[1757474702891,0.15448835,111630.0,111620.0,0.0046048]
[1757474703092,0.15448835,111630.0,111620.0,0.09998659]
[1757474703594,0.05910656,111630.0,111620.0,0.09998659]
[1757474704694,0.15448835,111630.0,111620.0,0.09998659]
[1757474706598,0.05910656,111630.0,111620.0,0.09998659]
[1757474707892,0.05910656,111630.0,111620.0,0.0046048]
[1757474708198,0.15448835,111630.0,111620.0,0.09998659]
[1757474708695,0.05910656,111630.0,111620.0,0.09998659]
[1757474708898,0.0375,111630.0,111620.0,0.09998659]
[1757474709197,0.13288179,111630.0,111620.0,0.09998659]
[1757474709800,0.15463186,111630.0,111620.0,0.0046048]
[1757474719001,0.25001365,111630.0,111620.0,0.0046048]
[1757474719406,0.30925007,111630.0,111620.0,0.0046048]
[1757474719711,0.03443,111600.0,111590.0,0.17612286]
[1757474720097,0.12981179,111600.0,111590.0,0.08074107]